[Event "II Llinars Open 2022"]
[Site "Llinars del Valles"]
[Date "2022.06.29"]
[Round "5.3"]
[White "Luna Cortes, Luis"]
[Black "Narciso Dublan, Marc"]
[Result "0-1"]
[ECO "B11"]
[WhiteElo "2215"]
[BlackElo "2464"]
[Annotator "TA"]
[PlyCount "102"]
[EventDate "2022.06.24"]
[EventType "swiss"]
[EventCountry "ESP"]
[SourceTitle "playchess.com"]
[Source "ChessBase"]
[SourceQuality "1"]
[TimeControl "5400+30"]

{[%evp 10,102,10,19,30,28,25,0,34,22,28,21,24,24,23,31,33,35,33,27,47,28,25,27,40,0,7,5,18,17,18,27,19,28,32,16,23,8,14,0,0,0,0,-14,-2,-7,-2,-4,0,-58,-23,-33,-37,-104,-87,-216,-202,-424,-244,-248,-246,-227,-241,-456,-455,-458,-444,-391,-405,-381,-236,-232,-203,-233,-224,-214,-212,-301,-309,-316,-314,-516,-525,-525,-513,-655,-533,-688,-671,-670,-622,-1104,-1090,-1355,-1286]} 1. e4 {[%emt 0:02:27]} c6 {[%emt 0:01:02]} 2. Nc3 {[%emt 0:00:16]} d5 {[%emt 0:00:10]} 3. Nf3 {[%emt 0:00:08]} Bg4 {[%emt 0:01:13]} 4. h3 {[%emt 0:01:25]} Bxf3 {[%emt 0:00:13]} 5. Qxf3 {[%emt 0:00:12]} e6 {[%emt 0:00:11]} 6. Be2 {[%emt 0:03:22]} Bc5 {[%emt 0:06:55] B11: Caro-Kann: Two Knights Variation.} 7. O-O {[%emt 0:01:24]} Ne7 {[%emt 0:00:34]} 8. Rd1 {[%emt 0:02:16]} Bd4 {[%emt 0:00:53] The position is equal.} (8... d4 $5 {[%cal Rd4c3]}) 9. exd5 {[%emt 0:00:36]} exd5 {[%emt 0:01:46] [#]} 10. Nb1 $146 {[%emt 0:03:21][%cal Bc3b1,Bb1d2,Bd2b3,Bb3c1,Bc1e2][%mdl 32]} ({Predecessor:} 10. Qg4 Bf6 11. d4 O-O 12. Bd3 Nd7 13. Ne2 Re8 14. Ng3 Ng6 15. c3 Be7 16. Nf5 {½-½ (49) Baches Garcia,G (2329)-Goryachkina,A (2610) Chess.com INT 2022}) 10... Nd7 {[%emt 0:02:52][%cal Bb8d7,Bd7f8,Bf8e6][%mdl 32]} 11. c3 {[%emt 0:00:18]} Bf6 {[%emt 0:01:10]} 12. d4 {[%emt 0:00:08]} Nf8 {[%emt 0:00:53]} 13. Bd3 {[%emt 0:04:44]} Ne6 {[%emt 0:00:36]} 14. Nd2 {[%emt 0:01:50]} O-O {[%emt 0:01:25]} 15. Nb3 {[%emt 0:05:09]} b6 {[%emt 0:05:44]} 16. Be3 {[%emt 0:00:36]} Qd6 {[%emt 0:13:31]} 17. Nc1 {[%emt 0:10:24][%cal Oh3h4]} Bg5 {[%emt 0:08:46]} 18. Re1 {[%emt 0:10:41][%cal Od3h7]} h6 {[%emt 0:07:53]} 19. Ne2 {[%emt 0:14:48]} Bxe3 {[%emt 0:03:20]} 20. Qxe3 {[%emt 0:03:44]} Rfe8 {[%emt 0:04:59]} 21. Rad1 {[%emt 0:06:00]} Kf8 {[%emt 0:03:10]} 22. h4 {[%emt 0:02:38]} Ng8 {[%emt 0:01:16]} 23. Qf3 {[%emt 0:00:52]} Re7 {[%emt 0:07:44]} 24. g3 {[%emt 0:07:13]} Rae8 {[%emt 0:01:16]} 25. Kf1 {[%emt 0:00:17]} Nf6 {[%emt 0:00:58]} 26. Bf5 {[%emt 0:06:19]} c5 {[%emt 0:03:27]} 27. dxc5 {[%emt 0:03:41]} bxc5 {[%emt 0:01:01]} 28. Nc1 {[%emt 0:01:14]} Qa6+ {[%emt 0:03:41]} 29. Bd3 {[%emt 0:01:38]} (29. Nd3 $11) 29... Qb6 {[%emt 0:00:25]} (29... c4 $5 {[%cal Rc4d3]} 30. Bf5 Qb5 $15) 30. b3 {[%emt 0:00:18]} Qa5 {[%emt 0:01:14]} 31. Be2 {[%emt 0:06:11]} (31. Ne2 $15) 31... Ne4 $36 {[%emt 0:04:42][%mdl 2048] Keeping White busy.} 32. Rxd5 {[%emt 0:01:37] This move loses the game for White.} (32. Qf5 $17) 32... Nxc3 {[%emt 0:00:43]} 33. Rd2 {[%emt 0:00:40]} (33. Re5 {is the only way for White.} Nd4 34. Rxe7 Rxe7 35. Qd3) 33... Nb1 {[%emt 0:03:26] Pair of Knights!} (33... Nd4 $142 34. Qd3 Qb4) 34. Rb2 $19 {[%emt 0:00:22] [#]} Nd2+ {[%emt 0:00:17]} ({Worse is} 34... Nd4 35. Qd3 $11) 35. Rxd2 {[%emt 0:00:05]} Qxd2 {[%emt 0:00:04]} 36. Qf5 $2 {[%emt 0:00:37]} (36. Qd3 Qxd3 37. Bxd3) 36... g6 {[%emt 0:05:58]} ({Wrong is} 36... Nd4 $2 37. Qxc5 Nxe2 38. Rxe2 $19) 37. Qf6 {[%emt 0:00:38][%cal Rf6h8]} Qd4 {[%emt 0:00:26]} ({But not} 37... Ng7 $2 38. Rd1 Qc2 39. Bf3 $19) 38. Qf3 {[%emt 0:00:27]} Kg7 {[%emt 0:01:39]} 39. Rd1 {[%emt 0:00:34]} Qf6 {[%emt 0:00:11]} 40. Qxf6+ {[%emt 0:00:39]} Kxf6 {[%emt 0:00:01]} 41. Bc4 {[%emt 0:00:27]} Rd8 {[%emt 0:01:46]} 42. Nd3 {[%emt 0:00:04]} Red7 {[%emt 0:01:03]} 43. a3 {[%emt 0:01:03]} (43. Ke1 {keeps fighting.}) 43... g5 {[%emt 0:01:52][%cal Bg6g5,Bg5h4,Bh4h3][%mdl 32]} 44. Bb5 {[%emt 0:00:34]} Rd6 {[%emt 0:00:24] [#] aiming for ...gxh4.} 45. Bc4 $2 {[%emt 0:00:26]} (45. hxg5+ {is a better defense.} hxg5 46. Bc4) 45... gxh4 {[%emt 0:00:20] Black is clearly winning.} 46. Kg2 {[%emt 0:00:14]} Rd4 {[%emt 0:01:06]} 47. Kf3 {[%emt 0:00:46]} Ng5+ {[%emt 0:00:41]} 48. Ke3 {[%emt 0:00:24]} Re8+ {[%emt 0:00:45]} 49. Kd2 {[%emt 0:00:02]} h3 {[%emt 0:00:33] Threatens to win with ...Ne4+.} 50. Kc3 {[%emt 0:00:21]} Re2 {[%emt 0:00:30][%cal Rg5e4]} 51. Nxc5 {[%emt 0:01:05]} Rxd1 {[%emt 0:00:13] Weighted Error Value: White=0.46/Black=0.14 (very precise)} 0-1

[Event "II Llinars Open 2022"]
[Site "Llinars del Valles"]
[Date "2022.06.29"]
[Round "5.4"]
[White "Juan Mas, Santiago"]
[Black "Munoz, Miguel"]
[Result "0-1"]
[ECO "B01"]
[WhiteElo "1889"]
[BlackElo "2421"]
[Annotator "TA"]
[PlyCount "48"]
[EventDate "2022.06.24"]
[EventType "swiss"]
[EventCountry "ESP"]
[SourceTitle "playchess.com"]
[Source "ChessBase"]
[SourceQuality "1"]
[TimeControl "5400+30"]

{[%evp 9,48,10,34,22,18,15,38,0,-15,-13,0,-26,-19,-39,-39,-48,-2,-86,-81,-123,-133,-101,-96,-267,-273,-445,-243,-243,-242,-251,-263,-271,-257,-252,-271,-267,-268,-263,-250,-262,-258]} 1. e4 {[%emt 0:00:12]} d5 {[%emt 0:00:06]} 2. exd5 {[%emt 0:00:30]} Qxd5 {[%emt 0:00:05]} 3. Nc3 {[%emt 0:00:06]} Qa5 {[%emt 0:00:07]} 4. g3 {[%emt 0:00:05][%cal Bg2g3,Bg3g4,Bg4g5][%mdl 32]} h5 {[%emt 0:00:27]} 5. h3 {[%emt 0:00:10]} Nc6 {[%emt 0:01:43]} 6. Bg2 {[%emt 0:00:30] [#] B01: Scandinavian Defence.} h4 $146 {[%emt 0:00:16]} ({Predecessor:} 6... Bd7 7. Nge2 O-O-O 8. d3 Nf6 9. Bd2 Qf5 10. O-O e5 11. Rb1 Qg6 12. f3 Bc5+ {0-1 (40) Pitra,A (2276)-Mariano,N (2318) Kuala Lumpur 2014}) 7. g4 {[%emt 0:00:56]} f5 {[%emt 0:00:10]} 8. g5 {[%emt 0:02:09] White is slightly better.} e5 {[%emt 0:00:09]} 9. d3 {[%emt 0:02:15]} Be6 {[%emt 0:00:38]} 10. Bd2 {[%emt 0:01:53][%cal Oc3d5]} O-O-O {[%emt 0:00:35]} 11. Bxc6 {[%emt 0:02:30]} bxc6 {[%emt 0:00:07]} 12. Qf3 {[%emt 0:00:44]} Bb4 {[%emt 0:04:17]} (12... Ne7 $15 {feels stronger.}) 13. Nge2 {[%emt 0:02:30]} (13. Qxc6 $11 Bd5 14. Nxd5 Bxd2+ 15. Ke2 Bxg5 16. Nf3 Qxd5 17. Qxd5 Rxd5 18. Nxg5) 13... Ne7 $17 {[%emt 0:00:27] Hoping for ...Bd5.} 14. O-O {[%emt 0:04:56] [#]} e4 $1 {[%emt 0:05:09]} 15. Qg2 {[%emt 0:00:14]} exd3 {[%emt 0:00:46] Black is more active.} 16. Nf4 {[%emt 0:01:30] Now White is beyond hope.} (16. cxd3 $17 Rxd3 17. a3 Rxd2 18. axb4) 16... dxc2 $19 {[%emt 0:00:19]} 17. Be3 $2 {[%emt 0:00:55]} (17. a3 Rxd2 18. axb4) 17... Bc4 {[%emt 0:03:27]} (17... Bxc3 $142 18. Nxe6 Bxb2 19. Nxd8 Rxd8) 18. Rfc1 {[%emt 0:00:58]} Bxc3 {[%emt 0:00:09]} 19. Rxc2 {[%emt 0:01:09]} Bd5 {[%emt 0:00:29]} 20. Nxd5 {[%emt 0:00:26]} Nxd5 {[%emt 0:00:08]} 21. bxc3 {[%emt 0:00:17]} Nxe3 {[%emt 0:00:18]} 22. fxe3 {[%emt 0:00:07]} Qc5 {[%emt 0:00:18] [#] ...Rhe8 is the strong threat.} 23. Qe2 {[%emt 0:01:17]} Rd6 {[%emt 0:01:14]} 24. Rf1 {[%emt 0:07:08]} Re8 {[%emt 0:00:51] Weighted Error Value: White=0.35/Black=0.19 (very precise)} 0-1

[Event "II Llinars Open 2022"]
[Site "Llinars del Valles"]
[Date "2022.06.29"]
[Round "5.5"]
[White "Herman Gamazo, Isaac"]
[Black "Fanninger, Leon"]
[Result "0-1"]
[ECO "B07"]
[WhiteElo "1823"]
[BlackElo "2157"]
[Annotator "NA RC"]
[PlyCount "120"]
[EventDate "2022.06.24"]
[EventType "swiss"]
[EventCountry "ESP"]
[SourceTitle "playchess.com"]
[Source "ChessBase"]
[SourceQuality "1"]
[TimeControl "5400+30"]

1. e4 {[%emt 0:00:05]} d6 {[%emt 0:09:50]} 2. d4 {[%emt 0:00:18]} Nf6 {[%emt 0:00:03]} 3. Nc3 {[%emt 0:00:35]} Nbd7 {[%emt 0:00:07]} 4. f4 {[%emt 0:01:25]} e5 {[%emt 0:00:03]} 5. Nf3 {[%emt 0:00:51]} exd4 {[%emt 0:00:14]} 6. Qxd4 {[%emt 0:01:09]} c6 {[%emt 0:00:08]} 7. Bd2 {[%emt 0:01:04]} d5 {[%emt 0:01:36]} 8. O-O-O {[%emt 0:01:24]} Bc5 {[%emt 0:03:08]} 9. Qd3 {[%emt 0:01:45]} O-O {[%emt 0:11:38]} 10. h3 {[%emt 0:06:53]} dxe4 {[%emt 0:14:48]} 11. Nxe4 {[%emt 0:00:25]} Nxe4 {[%emt 0:00:09]} 12. Qxe4 {[%emt 0:00:28]} Nf6 {[%emt 0:00:02]} 13. Qe1 {[%emt 0:08:54]} Be6 {[%emt 0:21:23]} 14. Bc3 {[%emt 0:07:17]} Nd5 {[%emt 0:03:32]} 15. Bd3 {[%emt 0:01:15]} Re8 {[%emt 0:05:37]} 16. Ng5 {[%emt 0:14:28]} Bf5 {[%emt 0:10:44]} 17. Qh4 {[%emt 0:03:05]} Be3+ {[%emt 0:00:01]} 18. Kb1 {[%emt 0:00:37]} Bxd3 {[%emt 0:01:05]} 19. Rxd3 {[%emt 0:00:48]} h6 {[%emt 0:00:09]} 20. Nf3 {[%emt 0:00:39]} Qxh4 {[%emt 0:00:41]} 21. Nxh4 {[%emt 0:00:08]} Bxf4 {[%emt 0:01:57]} 22. Nf5 {[%emt 0:02:18]} g6 {[%emt 0:01:32]} 23. g3 {[%emt 0:00:23]} Nxc3+ {[%emt 0:04:35]} 24. bxc3 {[%emt 0:00:40]} Bg5 {[%emt 0:04:20]} 25. h4 {[%emt 0:01:13]} gxf5 {[%emt 0:00:22]} 26. hxg5 {[%emt 0:00:02]} hxg5 {[%emt 0:00:01]} 27. Rh5 {[%emt 0:00:25]} Kg7 {[%emt 0:02:20]} 28. Rxg5+ {[%emt 0:00:19]} Kf6 {[%emt 0:00:01]} 29. Rh5 {[%emt 0:00:49]} Rh8 {[%emt 0:00:01]} 30. Rd6+ {[%emt 0:01:17]} Ke7 {[%emt 0:00:21]} 31. Rxh8 {[%emt 0:01:47]} Rxh8 {[%emt 0:00:02]} 32. Rd3 {[%emt 0:00:09]} Rh1+ {[%emt 0:01:57]} 33. Kb2 {[%emt 0:00:05]} Rf1 {[%emt 0:00:06]} 34. c4 {[%emt 0:00:17]} f4 {[%emt 0:01:15]} 35. gxf4 {[%emt 0:00:10]} Rxf4 {[%emt 0:00:02]} 36. Kc3 {[%emt 0:00:19]} c5 {[%emt 0:00:47]} 37. Re3+ {[%emt 0:02:34]} Kd7 {[%emt 0:00:27]} 38. a4 {[%emt 0:00:26]} a5 {[%emt 0:00:11]} 39. Rd3+ {[%emt 0:01:25]} Ke7 {[%emt 0:01:20]} 40. Re3+ {[%emt 0:00:07]} Kf8 {[%emt 0:00:59]} 41. Rd3 {[%emt 0:00:10]} Rf6 {[%emt 0:00:21]} 42. Rd5 {[%emt 0:00:33]} b6 {[%emt 0:00:09]} 43. Rd3 {[%emt 0:00:10]} Re6 {[%emt 0:00:24]} 44. Kd2 {[%emt 0:02:04]} Ke7 {[%emt 0:00:16]} 45. Kc3 {[%emt 0:00:08]} f5 {[%emt 0:00:26]} 46. Rd5 {[%emt 0:01:47]} Kf6 {[%emt 0:00:09]} 47. Kd2 {[%emt 0:00:21]} Kg5 {[%emt 0:00:08]} 48. Rd8 {[%emt 0:01:40]} Kg4 {[%emt 0:00:32]} 49. Rg8+ {[%emt 0:01:03]} Kf3 {[%emt 0:00:03]} 50. Rf8 {[%emt 0:00:13]} f4 {[%emt 0:00:02]} 51. Rd8 {[%emt 0:00:48]} Kf2 {[%emt 0:00:15]} 52. Rf8 {[%emt 0:00:06]} Rd6+ {[%emt 0:00:20]} 53. Kc1 {[%emt 0:00:14]} f3 {[%emt 0:00:06]} 54. Rf7 {[%emt 0:00:07]} Ke2 {[%emt 0:00:08]} 55. Re7+ {[%emt 0:00:10]} Kf1 {[%emt 0:00:13]} 56. Rf7 {[%emt 0:00:06]} f2 {[%emt 0:00:01]} 57. Rf8 {[%emt 0:00:25]} Rd4 {[%emt 0:00:08]} 58. Rf7 {[%emt 0:00:11]} Kg2 {[%emt 0:00:37]} 59. Rg7+ {[%emt 0:00:06]} Kf3 {[%emt 0:00:09]} 60. Rf7+ {[%emt 0:00:06]} Rf4 {[%emt 0:00:02]} 0-1

[Event "II Llinars Open 2022"]
[Site "Llinars del Valles"]
[Date "2022.06.29"]
[Round "5.6"]
[White "Segura Marsa, Andres"]
[Black "Sanchez Aguilar, Arnau"]
[Result "1-0"]
[ECO "B95"]
[WhiteElo "1862"]
[BlackElo "2028"]
[Annotator "NA RC"]
[PlyCount "41"]
[EventDate "2022.06.24"]
[EventType "swiss"]
[EventCountry "ESP"]
[SourceTitle "playchess.com"]
[Source "ChessBase"]
[SourceQuality "1"]
[TimeControl "5400+30"]

1. e4 {[%emt 0:00:04]} c5 {[%emt 0:01:14]} 2. Nf3 {[%emt 0:00:30]} d6 {[%emt 0:00:25]} 3. d4 {[%emt 0:00:36]} cxd4 {[%emt 0:00:31]} 4. Nxd4 {[%emt 0:00:32]} Nf6 {[%emt 0:00:28]} 5. Nc3 {[%emt 0:00:38]} a6 {[%emt 0:00:40]} 6. Bg5 {[%emt 0:01:03]} e6 {[%emt 0:00:41]} 7. Qd3 {[%emt 0:01:12]} Be7 {[%emt 0:01:44]} 8. O-O-O {[%emt 0:01:08]} Nbd7 {[%emt 0:01:45]} 9. f4 {[%emt 0:08:18]} Qc7 {[%emt 0:06:24]} 10. g4 {[%emt 0:05:38]} Nxg4 {[%emt 0:06:00]} 11. Bxe7 {[%emt 0:01:42]} Nf2 {[%emt 0:00:57]} 12. Qg3 {[%emt 0:01:05]} Nxd1 {[%emt 0:00:37]} 13. Kxd1 {[%emt 0:00:14]} Kxe7 {[%emt 0:02:22]} 14. Nxe6 {[%emt 0:01:19]} fxe6 {[%emt 0:03:01]} 15. Qxg7+ {[%emt 0:04:39]} Ke8 {[%emt 0:00:01]} 16. Qxh8+ {[%emt 0:07:21]} Nf8 {[%emt 0:00:02]} 17. Be2 {[%emt 0:01:59]} Qf7 {[%emt 0:05:36]} 18. Rg1 {[%emt 0:03:04]} Bd7 {[%emt 0:03:34]} 19. Rg7 {[%emt 0:11:09]} Qf6 {[%emt 0:01:17]} 20. Bh5+ {[%emt 0:00:12]} Kd8 {[%emt 0:00:10]} 21. Rxd7+ {[%emt 0:00:24]} 1-0

[Event "II Llinars Open 2022"]
[Site "Llinars del Valles"]
[Date "2022.06.29"]
[Round "5.7"]
[White "Garcia Gallardo, Victor"]
[Black "Uber Gracia, Hugo"]
[Result "0-1"]
[ECO "B11"]
[WhiteElo "1983"]
[BlackElo "1915"]
[Annotator "NA RC"]
[PlyCount "51"]
[EventDate "2022.06.24"]
[EventType "swiss"]
[EventCountry "ESP"]
[SourceTitle "playchess.com"]
[Source "ChessBase"]
[SourceQuality "1"]
[TimeControl "5400+30"]

1. e4 {[%emt 0:00:11]} c6 {[%emt 0:00:19]} 2. Nc3 {[%emt 0:00:15]} d5 {[%emt 0:00:27]} 3. Nf3 {[%emt 0:00:23]} Bg4 {[%emt 0:00:28]} 4. d4 {[%emt 0:00:14]} Nf6 {[%emt 0:03:39]} 5. h3 {[%emt 0:04:43]} Bxf3 {[%emt 0:01:39]} 6. gxf3 {[%emt 0:00:04]} e6 {[%emt 0:01:55]} 7. Qd3 {[%emt 0:00:25]} Bb4 {[%emt 0:10:59]} 8. Bd2 {[%emt 0:05:41]} Nbd7 {[%emt 0:05:50]} 9. Rg1 {[%emt 0:03:56]} e5 {[%emt 0:15:02]} 10. exd5 {[%emt 0:24:02]} cxd5 {[%emt 0:06:24]} 11. O-O-O {[%emt 0:02:11]} exd4 {[%emt 0:08:59]} 12. Qxd4 {[%emt 0:04:47]} Bc5 {[%emt 0:05:24]} 13. Re1+ {[%emt 0:03:03]} Kf8 {[%emt 0:02:23]} 14. Qh4 {[%emt 0:01:21]} h6 {[%emt 0:04:30]} 15. Bd3 {[%emt 0:09:15]} a6 {[%emt 0:04:36]} 16. Rg2 {[%emt 0:13:15]} Be7 {[%emt 0:02:48]} 17. Qf4 {[%emt 0:09:57]} Nh5 {[%emt 0:03:03]} 18. Qd4 {[%emt 0:00:06]} Ndf6 {[%emt 0:01:20]} 19. Rgg1 {[%emt 0:02:45]} Rc8 {[%emt 0:01:20]} 20. Na4 {[%emt 0:00:38]} b5 {[%emt 0:01:26]} 21. Rxe7 {[%emt 0:00:04]} bxa4 {[%emt 0:02:38]} 22. Qa7 {[%emt 0:01:26]} Qxe7 {[%emt 0:01:33]} 23. Qd4 {[%emt 0:01:03]} Kg8 {[%emt 0:02:58]} 24. Bb4 {[%emt 0:00:31]} Qc7 {[%emt 0:01:24]} 25. Kb1 {[%emt 0:01:07]} Qf4 {[%emt 0:03:23]} 26. a3 {[%emt 0:00:11]} 0-1

[Event "II Llinars Open 2022"]
[Site "Llinars del Valles"]
[Date "2022.06.29"]
[Round "5.8"]
[White "Serrano Batova, Vicent"]
[Black "Izagirre Alsua, Aritz"]
[Result "1-0"]
[ECO "D04"]
[WhiteElo "1992"]
[BlackElo "1904"]
[Annotator "NA RC"]
[PlyCount "55"]
[EventDate "2022.06.24"]
[EventType "swiss"]
[EventCountry "ESP"]
[SourceTitle "playchess.com"]
[Source "ChessBase"]
[SourceQuality "1"]
[TimeControl "5400+30"]

1. d4 {[%emt 0:00:03]} d5 {[%emt 0:00:33]} 2. Nf3 {[%emt 0:00:02]} Nf6 {[%emt 0:00:22]} 3. e3 {[%emt 0:00:02]} a6 {[%emt 0:00:18]} 4. Bd3 {[%emt 0:10:00]} c5 {[%emt 0:03:07]} 5. b3 {[%emt 0:00:26]} Ne4 {[%emt 0:05:40]} 6. Bb2 {[%emt 0:01:35]} e6 {[%emt 0:00:48]} 7. O-O {[%emt 0:00:44]} Nc6 {[%emt 0:01:37]} 8. Nbd2 {[%emt 0:01:06]} f5 {[%emt 0:01:39]} 9. Ne5 {[%emt 0:01:20]} Nxe5 {[%emt 0:04:03]} 10. dxe5 {[%emt 0:00:24]} Nxd2 {[%emt 0:05:24]} 11. Qxd2 {[%emt 0:02:43]} c4 {[%emt 0:00:16]} 12. Be2 {[%emt 0:01:01]} b5 {[%emt 0:00:23]} 13. a4 {[%emt 0:12:25]} Bb7 {[%emt 0:03:12]} 14. Bd4 {[%emt 0:01:55]} Qc7 {[%emt 0:07:15]} 15. b4 {[%emt 0:00:23]} Be7 {[%emt 0:06:37]} 16. Ra2 {[%emt 0:07:58]} O-O {[%emt 0:04:14]} 17. c3 {[%emt 0:01:57]} Bc6 {[%emt 0:09:08]} 18. a5 {[%emt 0:03:07]} h6 {[%emt 0:07:20]} 19. g4 {[%emt 0:01:41]} g6 {[%emt 0:00:49]} 20. f4 {[%emt 0:06:00]} Be8 {[%emt 0:05:54]} 21. Bd1 {[%emt 0:00:51]} Kh7 {[%emt 0:04:16]} 22. Qg2 {[%emt 0:00:58]} Rg8 {[%emt 0:01:37]} 23. Qh3 {[%emt 0:00:42]} Qd7 {[%emt 0:01:08]} 24. Rg2 {[%emt 0:02:00]} Bf7 {[%emt 0:00:46]} 25. Kh1 {[%emt 0:06:45]} Rg7 {[%emt 0:02:31]} 26. Rfg1 {[%emt 0:00:08]} Rag8 {[%emt 0:02:04]} 27. Rg3 {[%emt 0:04:02]} Qe8 {[%emt 0:00:32]} 28. Qxh6+ {[%emt 0:00:30]} 1-0